Cogmind - Beta 17 *** ADVENTURER MODE // 2026.06.27 @ 09:51:03 Player: smokingfox Result: Destroyed by 15-4XC(R) with Subdweller Laser Performance ------------- Evolutions (0) 0 Regions Visited (2) 400 Robots Destroyed (36) 180 Value Destroyed (885) 885 Prototype IDs (4) 80 Alien Tech Used (0) 0 Bonus (0) 0 TOTAL SCORE: 1545 Bonus ------- None Cogmind --------- Core Integrity 0/250 Matter 54/300 Energy 96/100 System Corruption 0% Temperature Cool (6) Movement Rolling (95) Ox1 Location -10/Subcaves Parts ------- > --- POWER (1) -------- (None) > --- PROPULSION (2) --- Wheel Wheel > --- UTILITY (2) ------ Large Storage Unit Targeting Computer > --- WEAPON (2) ------- Heavy Assault Rifle Battle Rifle > --- INVENTORY (15) --- Subdweller Power Source Subdweller Power Source Wheel Wheel Subdweller Monowheel Medium Matter Pod (100) Large Matter Pod (132) High-capacity Matter Pod (0) Makeshift Light Armor Plating Assault Rifle Heavy Assault Rifle Subdweller Machine Gun Rocket Launcher Dirty Datajack (20) Peak State ------------ > --- POWER ------------ Ion Engine > --- PROPULSION ------- Wheel Compact Wheel > --- UTILITY ---------- Large Storage Unit Targeting Computer > --- WEAPON ----------- Heavy Assault Rifle Rocket Launcher > --- INVENTORY -------- Ion Engine Wheel Wheel Wheel Wheel Subdweller Monowheel Medium Matter Pod Large Matter Pod High-capacity Matter Pod Makeshift Light Armor Plating Assault Rifle Heavy Assault Rifle Heavy Assault Rifle Light Cannon Rocket Launcher [Rating: 11] Favorites ----------- Power Light Ion Engine Engine Light Ion Engine Propulsion Wheel Wheel Wheel Utility Targeting Computer Storage Large Storage Unit Processor Targeting Computer Weapon Heavy Assault Rifle Energy Gun Small Laser Ballistic Gun Heavy Assault Rifle Ballistic Cannon Light Cannon Launcher Rocket Launcher Build | -11 -10 -10 ------- Run | Yrd Mat Sub Slots Evolved . | . . . Power . | . . . Propulsion . | . . . Utility . | . . . Weapon . | . . . Parts Attached 25 | 6 10 9 Power 3 | 1 1 1 Engine 3 | 1 1 1 Core . | . . . Reactor . | . . . Propulsion 7 | 2 3 2 Treads . | . . . Leg . | . . . Wheel 7 | 2 3 2 Hover . | . . . Flight . | . . . Utility 3 | 1 2 . Device . | . . . Storage 2 | 1 1 . Processor 1 | . 1 . Hackware . | . . . Protection . | . . . Artifact . | . . . Weapon 12 | 2 4 6 Energy Gun 1 | . 1 . Energy Cannon . | . . . Ballistic Gun 8 | 2 3 3 Ballistic Cannon 1 | . . 1 Launcher 2 | . . 2 Special Weapon . | . . . Impact Weapon . | . . . Slashing Weapon . | . . . Piercing Weapon . | . . . Special Melee Weapon . | . . . Unidentified Prototypes . | . . . Parts Lost 9 | . 2 7 Power 3 | . 1 2 Propulsion 3 | . 1 2 Utility . | . . . Weapon 3 | . . 3 Highest Loss Streak 5 | . 2 5 To Critical Strikes . | . . . Average Backups 12 | 3 12 14 Power 1 | . . 1 Propulsion 4 | 1 4 4 Utility 2 | . 1 3 Weapon 4 | . 4 4 Tool/Special . | . . . Unused Backups 17 | 2 4 11 Power 3 | . 1 2 Propulsion 6 | 2 1 3 Utility 6 | . 2 4 Weapon 1 | . . 1 Tool/Special 1 | . . 1 Average Slot Usage (%) 95 | . 99 92 Engine 10 | . 14 6 Wheel 27 | . 28 27 Storage 14 | . 14 14 Processor 13 | . 13 14 Ballistic Gun 22 | . 27 17 Ballistic Cannon 4 | . . 7 Launcher 1 | . . 2 Peak Build Rating 11 | 6 10 11 Average Rating 9 | 5 8 9 On Entrance 5 | . 6 10 Avg Prop Armor Cover (%) . | . . . Naked Turns . | . . . Heaviest Build 32 | 11 31 32 Greatest Support 26 | 26 26 26 Greatest Overweight (x) 1 | . 1 1 Average Overweight (x) . | . . . Largest Inventory Capacity 15 | 8 15 15 Average Capacity 13 | 7 12 15 Most Carried 15 | 7 15 15 Average Carried 12 | 3 12 14 Final Capacity 15 | 8 15 15 Final Carried 15 | 7 15 14 Class Distribution -------------------- 100% | Mutant Dominant Class ---------------- Mutant | -10/Materials Mutant | -10/Subcaves Resources | -11 -10 -10 ----------- Run | Yrd Mat Sub Matter Collected 1524 | 340 840 344 Remotely . | . . . Salvage Created 1039 | 199 589 251 Parts 72 | 17 36 19 Haulers Intercepted 2 | . 2 . Recyclers Shooed . | . . . Parts Field Recycled . | . . . Retrieved Matter . | . . . Parts Self-Destructed 18 | . . 18 Prevented . | . . . Parts Restored . | . . . Kills | -11 -10 -10 ------- Run | Yrd Mat Sub Combat Hostiles Destroyed 24 | . 13 11 Guns 15 | . 13 2 Cannons 5 | . . 5 AOE 4 | . . 4 Classes Destroyed 10 | 3 4 3 Worker 2 | 2 . . Tunneler 4 | 4 . . Hauler 2 | . 2 . Recycler 1 | 1 . . Turret 2 | . . 2 Watcher 1 | . 1 . Swarmer 6 | . 3 3 Grunt 10 | . 10 . Artisan 1 | . . 1 Subdweller 8 | . . 8 Best Kill Streak 4 | 3 3 4 Combat Bots Only 4 | . 3 4 Max Kills in Single Turn 2 | 1 2 2 Gunslinging 1 | . 1 . Exploded 2 | . . 2 Melee . | . . . Uniques/NPCs Destroyed . | . . . Combat | -11 -10 -10 -------- Run | Yrd Mat Sub Hostile Shots Fired 149 | . 80 69 Missed 41 | . 20 21 Hits 108 | . 60 48 Projectile 108 | . 60 48 AOE 4 | . . 4 Critical Strikes 2 | . . 2 Damage Taken 1247 | . 544 703 Core 265 | . 115 150 Absorbed by Shields . | . . . Ignored by Resistances 373 | . 172 201 Core Remaining (%) 100 | 100 . . Volleys Fired 130 | 20 60 50 Largest 2 | 2 2 2 Hottest 63 | 40 60 63 Shots Fired 260 | 40 120 100 Gun 212 | 40 120 52 Cannon 35 | . . 35 Launcher 13 | . . 13 Special . | . . . Kinetic 235 | 40 108 87 Thermal 12 | . 12 . Explosive 13 | . . 13 Electromagnetic . | . . . Robot Hit Streak 47 | 11 14 47 Robot Miss Streak 3 | 1 3 1 Penetration Max . | . . . Secondary Targets 3 | . 3 . Max Gunslinging Chain 1 | . 1 . Shots Hit Robots 171 | 31 86 54 Core Hits 59 | 9 25 25 Critical Kills 1 | 1 . . Critical Parts Destroyed . | . . . Critical Strikes 1 | 1 . . Destroy 1 | 1 . . Melee Attacks . | . . . Impact . | . . . Slashing . | . . . Piercing . | . . . Sneak Attacks . | . . . Combat Hostiles . | . . . Follow-up Attacks . | . . . Damage Inflicted 2741 | 336 1169 1236 Guns 1919 | 336 1169 414 Cannons 259 | . . 259 Explosions 563 | . . 563 Melee . | . . . Ramming . | . . . Kinetic 2081 | 336 1072 673 Thermal 97 | . 97 . Explosive 563 | . . 563 Electromagnetic . | . . . Impact . | . . . Slashing . | . . . Piercing . | . . . Highest Corruption . | . . . Average Corruption . | . . . Corruption Purged . | . . . Corruption Blocked . | . . . Overload Shots . | . . . Overflow Damage 17 | . . 17 Projectiles . | . . . Explosions 17 | . . 17 Melee . | . . . Knockbacks 5 | . . 5 Impact . | . . . Kinetic 5 | . . 5 Secondary . | . . . Self-Inflicted Damage 28 | . . 28 Shots 1 | . . 1 Rammed . | . . . Targets Rammed . | . . . Kicked . | . . . Crushed . | . . . Highest Temperature 72 | . 72 . Average Temperature 23 | . 23 . Received Heat Transfer 510 | . 372 138 Siege Activations . | . . . Martial Activations . | . . . Shielding Activations . | . . . Robots Disrupted . | . . . Combat Hostiles . | . . . Robots Corrupted . | . . . Combat Hostiles . | . . . Parts Fried . | . . . Impact Corruptions . | . . . Robots Melted . | . . . Combat Hostiles . | . . . Parts Melted 1 | . 1 . Heat Transferred 225 | . 225 . Parts Sabotaged . | . . . Parts Stolen . | . . . Parts Stripped . | . . . Power Chain Reactions . | . . . Alert | -11 -10 -10 ------- Run | Yrd Mat Sub Maximum Alert Level . | . . . Low Security (%) 100 | 100 100 . Level 1 . | . . . Level 2 . | . . . Level 3 . | . . . Level 4 . | . . . Level 5 . | . . . High Security . | . . . Max Security . | . . . Peak Influence 99 | 10 99 . Initial 2 | . 2 . Average 19 | 2 21 . Influence Increases 590 | 35 410 145 Destroy 0b10 Robot/C 360 | . 260 100 Destroy 0b10 Robot/NC 50 | 35 15 . Destroy Leader 56 | . 56 . Successful Hack 22 | . 22 . Disable Machine 9 | . 9 . Destroy Structure 3 | . 3 . Partial Spotted 15 | . 15 . Lose Combat Pursuer 75 | . 30 45 Influence Decreases 590 | 30 415 145 Entered New Map 3 | . 3 . Time Decay 557 | 30 392 135 Lost Part 30 | . 20 10 Squads Dispatched 2 | . 2 . Investigation 2 | . 2 . Extermination . | . . . Reinforcement . | . . . Assault . | . . . Garrison . | . . . Intercept . | . . . Searches Triggered . | . . . Construction Impeded . | . . . Haulers Reinforced . | . . . Active Scanning Responses . | . . . Cargo Convoy Interrupts . | . . . Stealth | -11 -10 -10 --------- Run | Yrd Mat Sub Distress Signals 3 | . 3 . Communications Jammed . | . . . Distress Signals . | . . . Times Spotted 39 | . 26 13 Peak Tracking Total 4 | . 4 3 Tactical Retreats 4 | . 2 2 Traps | -11 -10 -10 ------- Run | Yrd Mat Sub Traps Triggered 1 | . 1 . Indirectly . | . . . Trap Hack Attempts . | . . . Triggered . | . . . Disarmed . | . . . Reprogrammed . | . . . Reused . | . . . Traps Extracted . | . . . Installed . | . . . Triggered . | . . . Machines | -11 -10 -10 ---------- Run | Yrd Mat Sub Machines Disabled 5 | . 1 4 Max in Single Turn 3 | . 1 3 Machines Repaired . | . . . Machines Dismantled . | . . . Machines Sabotaged . | . . . Overloaded Fab Kills . | . . . Hacking | -11 -10 -10 --------- Run | Yrd Mat Sub Machines Accessed 8 | . 8 . Terminals 8 | . 8 . Fabricators . | . . . Repair Stations . | . . . Recycling Units . | . . . Scanalyzers . | . . . Garrison Access . | . . . Total Hacks 28 | . 28 . Successful 14 | . 14 . Failed 14 | . 14 . Catastrophic 1 | . 1 . Database Lockouts . | . . . Manual . | . . . Terminals 28 | . 28 . Fabricators . | . . . Repair Stations . | . . . Recycling Units . | . . . Scanalyzers . | . . . Garrison Access . | . . . Terminal Hacks 14 | . 14 . Record 8 | . 8 . Robot Analysis 1 | . 1 . Prototype ID Bank 4 | . 4 . Emergency Access Points 1 | . 1 . Fabricator Hacks . | . . . Repair Station Hacks . | . . . Recycling Unit Hacks . | . . . Scanalyzer . | . . . Garrison Access Hacks . | . . . Unauthorized Hacks . | . . . Terminals . | . . . Fabricators . | . . . Repair Stations . | . . . Recycling Units . | . . . Scanalyzers . | . . . Garrison Access . | . . . Data Cores Recovered . | . . . Used . | . . . Hacking Detections 7 | . 7 . Full Trace Events 2 | . 2 . Feedback Events . | . . . Feedback Blocked . | . . . Robot Schematics Acquired . | . . . Robots Built . | . . . Authchips . | . . . Time . | . . . Total Robot Build Rating . | . . . Part Schematics Acquired . | . . . Parts Built . | . . . Authchips . | . . . Time . | . . . Total Part Build Rating . | . . . Part Studies Acquired . | . . . Parts Repaired . | . . . Time . | . . . Parts Recycled . | . . . Recycled Matter . | . . . Retrieved Matter . | . . . Retrieved Components . | . . . Parts Scanalyzed . | . . . Part Schematics Acquired . | . . . Parts Damaged . | . . . Bothacking | -11 -10 -10 ------------ Run | Yrd Mat Sub Used RIF Installer . | . . . Robots Hacked . | . . . Non-combat . | . . . Combat . | . . . Robot Hacks Applied . | . . . Relay Couplers Released . | . . . Fabnet Peak Effective % . | . . . Robots Rewired . | . . . Allies Hacked . | . . . Hacks Repelled . | . . . Allies | -11 -10 -10 -------- Run | Yrd Mat Sub Total Allies . | . . . Largest Group . | . . . Highest-Rated Group . | . . . Highest-Rated Ally . | . . . Total Orders . | . . . Ally Attacks . | . . . Total Damage . | . . . Kills . | . . . Allies Corrupted . | . . . Allies Melted . | . . . Intel | -11 -10 -10 ------- Run | Yrd Mat Sub Active Infowar (turns) . | . . . Robot Analysis Total 1 | . 1 . Derelict Logs Recovered 2 | . . 2 Drone Launches . | . . . Drone Recoveries . | . . . Exploration | -11 -10 -10 ------------- Run | Yrd Mat Sub Turns Passed 2958 | 157 1252 1549 Spaces Moved 2093 | 88 744 1261 Core 2 | 2 . . Treads . | . . . Legs . | . . . Wheels 2091 | 86 744 1261 Hover . | . . . Flight . | . . . Fastest Speed 50 | 50 90 90 Average Speed 100 | 90 101 99 Slowest Speed 105 | 100 105 105 Overloaded Moves . | . . . Propulsion Burnouts . | . . . Robots Hopped . | . . . Potential Cave-ins . | . . . Cave-ins Triggered . | . . . Exploration Rate (%) 59 | 3 99 77 Regions Visited 2 Branch Regions 1 Pre-discovered Areas 1 | . . 1 Known Exits Taken . | . . . Unknown Exits Taken 2 | 1 1 . Scrap Searched . | . . . Spaces Dug . | . . . Terrain Destroyed 61 | . . 61 Melee . | . . . Projectile . | . . . AOE 61 | . . 61 Terrain Rammed . | . . . Walls Destroyed . | . . . Machines Disabled . | . . . Actions | -11 -10 -10 --------- Run | Yrd Mat Sub Total 2702 | 130 1124 1448 Wait 396 | . 286 110 Move 2091 | 87 743 1261 Hop . | . . . Pick Up 38 | 15 16 7 Fast Attach 1 | . 1 . Attach 14 | 6 2 6 Detach . | . . . Swap 19 | . 7 12 Drop 13 | 2 9 2 Fire 130 | 20 60 50 Melee . | . . . Ram . | . . . Kick . | . . . Crush . | . . . Escape Stasis . | . . . Rewire . | . . . Trap . | . . . Miscellaneous . | . . . Route ------- -11/Scrapyard -10/Materials (discovered 5 exits: [*Mat x3] / [*Min] / [*Sub]) -10/Subcaves (discovered 3 exits: [*Mat x2] / [*Rec]) History --------- Turn | Location | Event 24 | -11/Scrapyard | Discovered new exit (range 16) 158 | -11/Scrapyard | Entered Materials 304 | -10/Materials | Build established: Mutant 594 | -10/Materials | Discovered new exit (range 11) 676 | -10/Materials | Discovered new exit (range 8) 734 | -10/Materials | Discovered new exit (range 16) 1091 | -10/Materials | Discovered new exit (range 15) 1396 | -10/Materials | Discovered new exit (range 7) 1410 | -10/Materials | Entered Subcaves 1431 | -10/Subcaves | Learned location of 1 exit from Materials 1569 | -10/Subcaves | Learned Materials emergency access door positions 1604 | -10/Subcaves | Discovered new exit (range 13) 1637 | -10/Subcaves | Learned location of Zion (-7) 1637 | -10/Subcaves | Met a Zionite searching for "candidates" 1726 | -10/Subcaves | Shifting Twisted Machinery released Scrap Shield 1739 | -10/Subcaves | Shifting Twisted Machinery released Sub. Machine Gun 1779 | -10/Subcaves | Shifting Twisted Machinery released Sub. Monowheel 1782 | -10/Subcaves | Shifting Twisted Machinery released Mak. Light Armor Plating 2142 | -10/Subcaves | Discovered new exit (range 11) 2263 | -10/Subcaves | Core integrity fell below 50% 2305 | -10/Subcaves | Ambushed by Subdweller buried in earth 2308 | -10/Subcaves | Core integrity fell below 20% 2337 | -10/Subcaves | Ambushed by Subdwellers from Twisted Machinery 2343 | -10/Subcaves | Lost 5 parts (1p2n2w) 2363 | -10/Subcaves | Shifting Twisted Machinery released Sub. Laser 2371 | -10/Subcaves | Shifting Twisted Machinery released Sub. Machine Gun 2694 | -10/Subcaves | Discovered new exit (range 14) 2941 | -10/Subcaves | Disturbed a concealed Subdweller 2959 | -10/Subcaves | Destroyed by 15-4XC(R) with Subdweller Laser Last Messages --------------- Acquired Battle Rifle. Acquired 23 matter. Acquired 47 matter. Sub. Laser falls loose from the Twisted Machinery. Sub. Machine Gun falls loose from the Twisted Machinery. EXIT=FOUND E9-QA4(R) knocked back. E9-QA4(R) destroyed. Acquired 45 matter. Acquired Sub. Machine Gun. Acquired 4 matter. 69-HWG(R) destroyed. Acquired 42 matter. Acquired 1 matter. Subatomizers dissect the Sub. Machine Gun. 15-4XC(R) angrily emerges from the Twisted Machinery. Lgt. Cannon destroyed. Map ----- +----------------------------------------------------+ | | | | | | | | | | | | | ?????????????????????????????????????????????????? | | ?????????????????????????????????????????????????? | | ?????????????????????????????????????????????????? | | ?????????????????????????????????????????????????? | | ?????????????????????????????????????????????????? | | ?????????????????????????????????????????????????? | | ?????????????????????????????????????????????????? | | ?????????????????????????????????????????????????? | | ?????????????????????????????????????????????????? | | ?????????????????????????????##?##???????????????? | | ????????????????????????????# # ????????????????? | | ?????????????????????????????$& ????????????????? | | ??????????????????????????????"&##???????????????? | | ????????????????????????????### $#???????????????? | | ????????????????????????????# # ###??????????????? | | ????????????????????????????# " " #??????????????? | | ???????????????????????????## ###?????????###? | | ??????????????????????????## ###########""# | | ???????????????????????#### # "" ##""""" | | ???????????????????????# @R ## """"" """"" | | ???????????????????????## ### " "" """"" | | ????????????????????????## #?## ### "# ###""""" | | ?????????????????????????####??##### ""###?## "" | | ???????????????????????????###????# " #??####"" | | ???????????????????????????# ##?### ####??#"" | | ???????????????????????????# ### "##?#"" | | ????????????????????????????# ### #?#"" | | ?????????????????# ###?????## ## ###"" | | ?????????????????# ###?## & ### #" | | ????????????????? ## & # ## "## | | ????????????????? ""# | | ???????????????????? ## """ | | ???????????????????????## | | ????????????????????????## | | ???????????????????????### ### | | ???????????????????????# #?## | | ???????????????????????## ### #?## | | ???????????????????????### ##?# ### | | ??????????????????????## && # ######??# | | ??????????????????????# % # "# ##????# | | ??????????????????????## ## # ## # ## | | ??????????????????????# ##" #### | | ??????????????????????## % # ??? | | ???????????????????????# % ?? | +----------------------------------------------------+ Best States ------------- Heat Dissipation 25 Energy Generation 10 Energy Capacity 250 Matter Stores 300 Matter Capacity 300 Sight Range 16 Terrain Scan Density 10 Resistance: KI 20 Resistance: TH 20 Resistance: EX 20 Resistance: EM 20 Resistance: I 20 Resistance: S 20 Resistance: P 20 Evasion (%) 42 Targeting Accuracy 5 Offensive Hacking 10 Item Schematics ----------------- None Robot Schematics ------------------ None Fabricated ------------ Nothing Repaired ---------- Nothing Studied --------- None Alien Tech Used ----------------- None Achievements -------------- None Challenges ------------ None Game ------ Seed TerrabombSpreadHoverbase Manual? 0 Play Time 00:23:20 Cumulative 33.8 hours Start 2026.06.23 @ 20:14:00 End 2026.06.27 @ 09:51:03 Sessions 2 Manual Loads 0 Difficulty Adventurer Special Mode None Game No. 49 Rogue 7 Adventurer 42 Explorer 0 Win Type - Total 0 Types 0/0/0/0/0/0/0/0/0/0 Lore% 47 Gallery% 27 Achievement% 21 Wizard Run 0 Options --------- Layout 1 ASCII 0 Keyboard 0 Movement Mouse Keybinds 0 Fullscreen 1 Font 48/Smallcaps Map View 50x35 Zoom Use 0% Tactical HUD 0 Map Filters NONE Filters NONE Steam 1 RUN: 1f084a79-4dbd-4050-85f7-d8a8662c3fb0